bitfinex-derivatives/quotes_BTCF0:USTF0_20230901
["timestamp","ask_amount","ask_price","bid_price","bid_amount"]
[1693584680082,0.26802239,25789.0,25786.0,0.3]
[1693584680083,0.39149722,25787.0,25786.0,0.3]
[1693584680393,0.19179722,25788.0,25786.0,1.03253745]
[1693584680591,0.19179722,25788.0,25787.0,0.6213]
[1693584680794,0.19179722,25788.0,25787.0,0.73253745]
[1693584680986,0.19179722,25789.0,25787.0,0.73253745]
[1693584681187,0.19179722,25789.0,25788.0,0.67598907]
[1693584681397,0.19179722,25789.0,25788.0,0.67784838]
[1693584681895,0.19179722,25789.0,25788.0,0.73253745]
[1693584682999,0.39149722,25790.0,25788.0,0.73453745]
[1693584683295,0.19179722,25790.0,25789.0,0.73253745]
[1693584684502,0.20179722,25790.0,25789.0,0.73553745]
[1693584684993,0.20182104,25790.0,25789.0,0.73553745]
[1693584685192,0.20182104,25790.0,25789.0,0.67898907]
[1693584685497,0.20181371,25790.0,25789.0,0.05768907]
[1693584686586,0.20181371,25790.0,25789.0,0.06068907]
[1693584686793,0.20181371,25790.0,25789.0,0.11723745]
[1693584687687,0.20179996,25790.0,25789.0,0.11723745]
[1693584689494,0.20179996,25790.0,25789.0,0.73853745]
[1693584697390,0.20179996,25790.0,25789.0,0.53653745]
[1693584697594,0.01,25790.0,25789.0,1.25583745]
[1693584698704,0.01,25790.0,25789.0,1.27583745]
[1693584706402,0.01,25790.0,25789.0,1.25583745]
[1693584706715,0.01,25790.0,25789.0,1.27583745]
[1693584706911,0.19238158,25792.0,25790.0,0.11123745]
[1693584707216,0.19220464,25794.0,25791.0,0.4193]
[1693584707410,0.19220464,25794.0,25793.0,0.7193]
[1693584707606,0.19220464,25794.0,25793.0,0.83053745]
[1693584708309,0.23015995,25798.0,25793.0,0.83053745]
[1693584708310,0.19220464,25795.0,25793.0,0.83053745]
[1693584708512,0.19220464,25795.0,25794.0,0.53053745]
[1693584709714,0.19220464,25795.0,25794.0,0.53441745]
[1693584710316,0.19220464,25795.0,25794.0,0.53053745]
[1693584710513,0.19320464,25795.0,25794.0,0.53641745]
[1693584710907,0.19320464,25795.0,25794.0,0.53841745]
[1693584711306,0.19320464,25795.0,25794.0,0.53453745]
[1693584711505,0.19320464,25795.0,25794.0,0.53841745]
[1693584712814,0.001,25795.0,25794.0,0.53841745]
[1693584713213,0.19320464,25795.0,25794.0,0.53841745]
[1693584713710,0.19320464,25795.0,25794.0,0.53453745]
[1693584713913,0.21320464,25795.0,25794.0,0.4233]
[1693584714107,0.021,25795.0,25794.0,0.4233]
[1693584716014,0.021,25795.0,25794.0,0.47798907]
[1693584716317,0.021,25795.0,25794.0,0.4233]
[1693584716910,0.4403,25795.0,25794.0,0.4233]
[1693584717218,1.2,25793.0,25792.0,0.41988151]
[1693584717423,1.68162999,25793.0,25792.0,0.00058151]
[1693584717715,1.8,25789.0,25786.0,0.4193]
[1693584717923,0.4193,25787.0,25786.0,0.4193]
[1693584718112,0.4393,25787.0,25786.0,0.4193]
[1693584718315,0.4393,25787.0,25783.0,0.4193]
[1693584718316,1.20378965,25785.0,25783.0,0.4193]
[1693584718514,0.4193,25784.0,25783.0,0.4193]
[1693584718708,0.4393,25784.0,25783.0,0.4193]
[1693584718911,0.63125101,25784.0,25783.0,0.4193]
[1693584719116,0.4393,25784.0,25783.0,0.4193]
[1693584721318,0.4723,25784.0,25783.0,0.4223]
[1693584723411,0.5093,25784.0,25783.0,0.4253]
[1693584725814,0.4893,25784.0,25783.0,0.4253]
[1693584726019,0.5093,25784.0,25783.0,0.4253]
[1693584726322,0.4893,25784.0,25783.0,0.4253]
[1693584726624,0.5093,25784.0,25783.0,0.4253]
[1693584728022,0.5093,25784.0,25783.0,0.48184838]
[1693584728622,0.5093,25784.0,25783.0,0.4253]
[1693584730117,0.5093,25784.0,25783.0,0.47998907]
[1693584730326,0.5093,25784.0,25783.0,0.4253]
[1693584731814,0.4893,25784.0,25783.0,0.4253]
[1693584732228,0.4893,25784.0,25783.0,0.42507874]
[1693584732527,0.07,25784.0,25783.0,0.4253]
[1693584732913,0.07,25784.0,25783.0,0.53653745]
[1693584737830,0.07,25784.0,25783.0,0.55653745]
[1693584738929,0.033,25784.0,25783.0,0.55353745]
[1693584739127,0.042,25784.0,25783.0,0.55353745]
[1693584739529,0.042,25784.0,25783.0,0.53353745]
[1693584740534,0.034,25784.0,25783.0,0.55053745]
[1693584740735,0.002,25784.0,25783.0,0.54753745]
[1693584740936,0.001,25784.0,25783.0,0.53053745]
[1693584741137,0.001,25784.0,25783.0,0.53453745]
[1693584741528,0.2426,25785.0,25784.0,0.3]
[1693584741734,0.2426,25785.0,25784.0,0.83053745]
[1693584742533,0.2436,25785.0,25784.0,0.83053745]
[1693584744137,0.2526,25785.0,25784.0,0.83053745]
[1693584744639,0.2526,25785.0,25784.0,0.77398907]
[1693584745942,0.2526,25785.0,25784.0,0.83053745]
[1693584749141,0.19173905,25791.0,25787.0,0.3]
[1693584749444,1.01148686,25794.0,25787.0,0.3]
[1693584749445,0.19173905,25793.0,25792.0,0.00388]
[1693584749646,0.19173905,25793.0,25792.0,0.4193]
[1693584749836,0.19173905,25793.0,25792.0,0.53441745]
[1693584750538,0.21873905,25793.0,25792.0,0.53741745]
[1693584751342,0.21873905,25793.0,25792.0,0.53353745]
[1693584751543,0.24773905,25793.0,25792.0,0.53653745]
[1693584752533,0.056,25793.0,25792.0,0.53653745]
[1693584754043,0.24773905,25793.0,25792.0,0.53653745]
[1693584754941,0.056,25793.0,25792.0,0.53653745]
[1693584755138,0.056,25793.0,25792.0,0.54041745]
[1693584756232,0.056,25793.0,25792.0,0.42918]
[1693584756439,0.049,25793.0,25792.0,0.42718]
[1693584756943,0.034,25793.0,25792.0,0.53641745]
[1693584759253,0.034,25793.0,25792.0,0.48172838]
[1693584759441,0.034,25793.0,25792.0,0.42518]
[1693584759844,0.034,25793.0,25792.0,0.53641745]
[1693584760947,0.22573905,25793.0,25792.0,0.53641745]
[1693584761747,0.034,25793.0,25792.0,0.53641745]
[1693584763149,0.034,25793.0,25792.0,0.55641745]
[1693584766241,0.034,25793.0,25792.0,0.53641745]
[1693584767543,0.034,25793.0,25792.0,0.55641745]
[1693584767947,0.00058155,25795.0,25794.0,0.00388]
[1693584768149,0.00058155,25795.0,25794.0,0.85441745]
[1693584768952,0.00058155,25795.0,25794.0,0.83441745]
[1693584769157,0.00058155,25795.0,25794.0,0.85441745]
[1693584769447,0.00758155,25795.0,25794.0,0.85741745]
[1693584770042,0.00758155,25795.0,25794.0,0.86041745]
[1693584770256,0.02158155,25795.0,25794.0,0.86041745]
[1693584771156,0.02158155,25795.0,25794.0,0.85653745]
[1693584771654,0.02158155,25795.0,25794.0,0.83653745]
[1693584771856,0.02158155,25795.0,25794.0,0.84041745]
[1693584772257,0.02158155,25795.0,25794.0,0.83941745]
[1693584774673,0.02158155,25795.0,25794.0,0.83553745]
[1693584774967,0.02158155,25795.0,25794.0,0.83941745]
[1693584775174,0.02258155,25795.0,25794.0,0.83741745]
[1693584775763,0.02258155,25795.0,25794.0,0.83353745]
[1693584775970,0.02258155,25795.0,25794.0,0.83741745]
[1693584776468,0.02258155,25795.0,25794.0,0.83353745]
[1693584776669,0.02258155,25795.0,25794.0,0.83741745]
[1693584776867,0.02258155,25795.0,25794.0,0.83353745]
[1693584777480,0.02258155,25795.0,25794.0,0.85353745]
[1693584778160,0.02258155,25795.0,25794.0,1.15741745]
[1693584778380,0.19173905,25801.0,25800.0,0.00388]
[1693584778569,0.04201681,25804.0,25803.0,0.00388]
[1693584778770,0.04201681,25804.0,25803.0,0.44318]
[1693584779078,0.04201681,25804.0,25803.0,0.53441745]
[1693584779270,0.04201681,25804.0,25803.0,0.83441745]
[1693584781873,0.04201681,25804.0,25803.0,0.83053745]
[1693584782081,0.04201681,25804.0,25803.0,0.83441745]
[1693584782281,0.04580646,25804.0,25803.0,0.83441745]
[1693584783364,0.04201681,25804.0,25803.0,0.83441745]
[1693584783575,0.00058131,25806.0,25805.0,0.00388]
[1693584783780,0.00058131,25806.0,25805.0,0.44318]
[1693584784076,0.00058131,25806.0,25805.0,0.55441745]
[1693584784669,0.00058131,25806.0,25805.0,0.55641745]
[1693584784976,0.00058131,25806.0,25805.0,0.55841745]
[1693584785574,0.14285714,25812.0,25811.0,0.30388]
[1693584785778,0.78518965,25814.0,25813.0,0.00388]
[1693584785978,0.00378965,25814.0,25813.0,0.42318]
[1693584786173,0.00378965,25814.0,25813.0,0.47972838]
[1693584786876,0.00378965,25814.0,25813.0,0.53441745]
[1693584788472,0.00378965,25814.0,25813.0,0.53741745]
[1693584789374,0.00378965,25814.0,25813.0,0.54041745]
[1693584792979,0.24068965,25815.0,25814.0,0.30387]
[1693584793173,0.26068965,25815.0,25814.0,0.83440745]
[1693584793370,0.00378965,25815.0,25814.0,0.83440745]
[1693584793577,3.85578965,25816.0,25815.0,0.00387]
[1693584793875,3.85578965,25816.0,25815.0,0.53440745]
[1693584794883,3.85578965,25816.0,25815.0,0.47971838]
[1693584795278,3.85578965,25816.0,25815.0,0.48571838]
[1693584795974,3.85578965,25816.0,25815.0,0.4253]
[1693584796573,3.85578965,25816.0,25815.0,0.47998907]
[1693584796770,3.85578965,25816.0,25815.0,0.48184838]
[1693584797186,3.85578965,25816.0,25815.0,0.53653745]
[1693584797387,3.85578965,25816.0,25815.0,0.48184838]
[1693584797583,3.85578965,25816.0,25815.0,0.53653745]
[1693584800680,3.85578965,25816.0,25815.0,0.54040745]
[1693584800988,3.852,25816.0,25815.0,0.54040745]
[1693584802482,2.382,25816.0,25815.0,0.56040745]
[1693584802875,2.382,25816.0,25815.0,0.54040745]
[1693584803075,2.382,25816.0,25815.0,0.56040745]
[1693584804184,2.382,25816.0,25815.0,0.55740745]
[1693584804379,2.382,25816.0,25815.0,0.56040745]
[1693584804783,2.382,25816.0,25815.0,0.55940745]
[1693584804985,2.382,25816.0,25815.0,0.55640745]
[1693584805184,2.382,25816.0,25815.0,0.55540745]
[1693584805387,2.382,25816.0,25815.0,0.55640745]
[1693584805689,2.382,25816.0,25815.0,0.53640745]
[1693584806387,2.382,25816.0,25815.0,0.55640745]
[1693584806987,0.912,25816.0,25815.0,0.55640745]
[1693584807686,0.912,25816.0,25815.0,0.57140745]
[1693584808387,0.912,25816.0,25815.0,0.58040745]
[1693584809882,0.24369748,25820.0,25815.0,0.58040745]
[1693584810085,0.00378965,25821.0,25820.0,0.72317]
[1693584810289,0.24368965,25822.0,25821.0,0.00387]
[1693584810484,0.24368965,25822.0,25821.0,0.53440745]
[1693584810485,0.00378965,25822.0,25821.0,0.53440745]
[1693584810684,0.00378965,25822.0,25821.0,0.47584838]
[1693584811082,0.00378965,25822.0,25821.0,0.53053745]
[1693584811083,0.02378965,25822.0,25821.0,0.53053745]
[1693584811784,0.02378965,25822.0,25821.0,0.48084838]
[1693584812284,0.02378965,25822.0,25821.0,0.47984838]
[1693584812475,0.44308965,25822.0,25821.0,0.004]
[1693584812684,0.00418964,25820.0,25819.0,0.30058091]
[1693584812886,0.44348964,25820.0,25819.0,0.30058091]
[1693584813791,0.44348964,25820.0,25819.0,0.35712929]
[1693584814792,0.44648964,25820.0,25819.0,0.35712929]
[1693584816190,0.44648964,25820.0,25819.0,0.30058091]
[1693584816892,0.44648964,25820.0,25819.0,0.35712929]
[1693584817789,0.44648964,25820.0,25819.0,0.36099929]
[1693584818293,0.44648964,25820.0,25819.0,0.35712929]
[1693584818487,0.44648964,25820.0,25819.0,0.41181836]
[1693584819581,0.00718964,25820.0,25819.0,0.83498836]
[1693584819893,0.00678965,25820.0,25819.0,0.83498836]
[1693584821893,0.003,25820.0,25819.0,0.83498836]
[1693584822095,0.003,25820.0,25819.0,0.85498836]
[1693584826894,0.00678965,25820.0,25819.0,0.30058091]
[1693584827197,0.00678965,25820.0,25819.0,0.71988091]
[1693584828001,0.00678965,25820.0,25819.0,0.83111836]
[1693584828198,0.00678965,25820.0,25819.0,0.83498836]
[1693584828597,0.003,25820.0,25819.0,0.83498836]
[1693584828993,0.003,25820.0,25819.0,0.85498836]
[1693584830291,0.00678965,25820.0,25819.0,0.85498836]
[1693584830595,0.00678965,25820.0,25819.0,0.78029929]
[1693584830995,0.00678965,25820.0,25819.0,0.83498836]
[1693584831894,0.00678965,25820.0,25819.0,0.78029929]
[1693584833098,0.00678965,25820.0,25819.0,0.83498836]
[1693584833703,0.00678965,25820.0,25819.0,0.77642929]
[1693584833904,0.00678965,25820.0,25819.0,0.71988091]
[1693584834495,0.02678965,25820.0,25819.0,0.71988091]
[1693584835597,0.00678965,25820.0,25819.0,0.71988091]
[1693584835802,0.02678965,25820.0,25819.0,0.77642929]
[1693584835999,0.00678965,25820.0,25819.0,0.77642929]
[1693584836399,0.00678965,25820.0,25819.0,0.83111836]
[1693584836604,0.19865398,25820.0,25819.0,0.77642929]
[1693584837008,1.64608965,25820.0,25819.0,0.00058091]
[1693584837206,0.00378965,25819.0,25818.0,0.3]
[1693584837406,0.44308965,25819.0,25818.0,0.3]
[1693584837704,0.67317651,25819.0,25818.0,0.3]
[1693584838502,0.69717651,25819.0,25818.0,0.302]
[1693584838903,0.68217651,25819.0,25818.0,0.301]
[1693584839099,0.68817651,25819.0,25818.0,0.302]
[1693584839308,0.69717651,25819.0,25818.0,0.302]
[1693584840509,0.00378965,25811.0,25810.0,0.00387]
[1693584840702,0.42308965,25811.0,25810.0,0.06041838]
[1693584841304,0.42308965,25811.0,25809.0,0.7193]
[1693584841305,0.00378965,25810.0,25809.0,0.7193]
[1693584841800,0.00378965,25810.0,25809.0,0.77398907]
[1693584842005,0.00378965,25810.0,25809.0,0.83053745]
[1693584843013,0.06478965,25810.0,25809.0,0.83553745]
[1693584843206,0.06478965,25810.0,25809.0,0.78084838]
[1693584844005,0.06478965,25810.0,25809.0,0.83553745]
[1693584844210,0.06478965,25810.0,25809.0,0.78084838]
[1693584845210,0.06478965,25810.0,25809.0,0.83553745]
[1693584845408,0.061,25810.0,25809.0,0.83940745]
[1693584845616,0.061,25810.0,25809.0,0.85940745]
[1693584847411,0.061,25810.0,25809.0,1.06060745]
[1693584848213,0.061,25810.0,25809.0,2.47759556]
[1693584850912,0.061,25810.0,25809.0,2.55487171]
[1693584851216,0.061,25810.0,25809.0,2.47759556]
[1693584853807,0.061,25810.0,25809.0,2.47765046]
[1693584857815,0.061,25810.0,25809.0,2.45765046]
[1693584858015,0.061,25810.0,25809.0,2.47765046]
[1693584858412,0.061,25810.0,25809.0,2.45765046]
[1693584858616,0.061,25810.0,25809.0,2.47765046]
[1693584863621,0.061,25810.0,25809.0,2.45765046]
[1693584865925,0.061,25810.0,25809.0,1.34060745]
[1693584868321,0.061,25810.0,25809.0,2.45764913]
[1693584871430,0.06478965,25810.0,25809.0,2.45764913]
[1693584871742,0.08478965,25810.0,25809.0,1.2255]
[1693584872136,0.08478965,25810.0,25809.0,0.9255]
[1693584872327,0.08478965,25810.0,25809.0,0.724]
[1693584872522,0.33318965,25810.0,25809.0,0.724]
[1693584875626,0.33318965,25810.0,25809.0,0.78054838]
[1693584876226,0.33318965,25810.0,25809.0,0.83523745]
[1693584877832,0.33318965,25810.0,25809.0,0.83910745]
[1693584878034,0.061,25810.0,25809.0,1.15910745]
[1693584878235,0.061,25810.0,25809.0,2.2760833]
[1693584878735,0.061,25810.0,25809.0,2.35335945]
[1693584879142,0.061,25810.0,25809.0,2.2760833]
[1693584879531,0.031,25810.0,25809.0,2.3100833]
[1693584879941,0.03478965,25810.0,25809.0,2.3100833]
[1693584880730,0.00878965,25810.0,25809.0,2.3450833]
[1693584881127,0.00878965,25810.0,25809.0,2.3250833]
[1693584881333,0.00878965,25810.0,25809.0,2.3212133]
[1693584882233,0.00878965,25810.0,25809.0,2.32128838]
[1693584882438,0.00878965,25810.0,25809.0,1.20423745]
[1693584884241,0.00878965,25810.0,25809.0,2.32128708]
[1693584884637,0.00378965,25811.0,25810.0,0.42287]
[1693584884946,0.00378965,25811.0,25810.0,0.97310745]
[1693584885631,0.00778965,25811.0,25810.0,1.04110745]
[1693584886047,0.00778965,25811.0,25810.0,2.15808268]
[1693584886735,0.004,25811.0,25810.0,2.13806162]
[1693584886939,0.00058118,25812.0,25811.0,0.00387]
[1693584887142,0.00058118,25812.0,25811.0,0.53410745]
[1693584887838,0.00378965,25817.0,25816.0,0.30387]
[1693584888139,0.19648957,25817.0,25816.0,0.72287]
[1693584888534,0.19648957,25817.0,25816.0,0.83410745]
[1693584888837,0.19651656,25817.0,25816.0,0.83023745]
[1693584889041,0.22751656,25817.0,25816.0,0.83323745]
[1693584889343,0.22851656,25817.0,25816.0,0.83523745]
[1693584889541,0.20351656,25817.0,25816.0,0.83223745]
[1693584890139,0.03078965,25817.0,25816.0,0.721]
[1693584890741,0.02978965,25817.0,25816.0,0.719]
[1693584890943,0.03078965,25817.0,25816.0,0.719]
[1693584891339,0.26087651,25817.0,25816.0,0.719]
[1693584891540,0.26087651,25817.0,25816.0,0.77554838]
[1693584891842,0.26087651,25817.0,25816.0,0.719]
[1693584892042,0.03078965,25817.0,25816.0,0.719]
[1693584892234,0.03078965,25817.0,25816.0,0.9205]
[1693584892843,0.03078965,25817.0,25816.0,1.03173745]
[1693584893243,0.03078965,25817.0,25816.0,0.97704838]
[1693584893442,0.03078965,25817.0,25816.0,1.03173745]
[1693584895846,0.03078965,25817.0,25816.0,1.03560745]
[1693584896039,0.01078965,25817.0,25816.0,1.03560745]
[1693584898642,0.03078965,25817.0,25816.0,0.9205]
[1693584902145,0.03078965,25817.0,25816.0,0.97518907]
[1693584902358,0.03078965,25817.0,25816.0,0.9205]
[1693584903045,0.03078965,25817.0,25816.0,0.97518907]
[1693584903245,0.03078965,25817.0,25816.0,0.97704838]
[1693584903853,0.03078965,25817.0,25816.0,0.9205]
[1693584904042,0.03078965,25817.0,25816.0,0.3]
[1693584904548,0.01078965,25817.0,25816.0,0.3]
[1693584904750,0.03078965,25817.0,25816.0,0.3]
[1693584906956,0.03078965,25817.0,25816.0,0.9205]
[1693584911152,0.03078965,25817.0,25816.0,0.97704838]
[1693584911350,0.03078965,25817.0,25816.0,0.9205]
[1693584911751,0.03078965,25817.0,25816.0,0.97704838]
[1693584912160,0.01078965,25817.0,25816.0,1.03560745]
[1693584912353,0.007,25817.0,25816.0,0.83390745]
[1693584912955,0.19949044,25817.0,25816.0,0.83390745]
[1693584913459,0.19949044,25817.0,25816.0,0.85390745]
[1693584914653,0.19349044,25817.0,25816.0,0.85390745]
[1693584914852,0.19949044,25817.0,25816.0,0.85390745]
[1693584916159,0.007,25817.0,25816.0,0.85390745]
[1693584918760,1.04983467,25823.0,25816.0,0.85390745]
[1693584918761,0.01148686,25824.0,25823.0,0.00387]
[1693584918951,1.44270461,25825.0,25824.0,0.30387]
[1693584919253,1.19630461,25825.0,25824.0,0.83390745]
[1693584919458,1.44270461,25825.0,25824.0,0.83390745]
[1693584920256,1.44270461,25825.0,25824.0,0.83690745]
[1693584920758,1.63511697,25825.0,25824.0,0.83690745]
[1693584921661,0.53697281,25828.0,25827.0,0.30387]
[1693584921854,0.34453782,25828.0,25827.0,0.83390745]
[1693584923263,0.34453782,25828.0,25827.0,0.84090745]
[1693584923560,0.34832747,25828.0,25827.0,0.7258]
[1693584923765,0.36832747,25828.0,25827.0,0.7438]
[1693584924069,0.56076246,25828.0,25827.0,0.7438]
[1693584924453,0.56076246,25828.0,25827.0,0.7258]
[1693584925053,0.56076246,25828.0,25827.0,0.7188]
[1693584925255,0.56176246,25828.0,25827.0,0.7398]
[1693584925559,0.00378965,25823.0,25822.0,0.00058084]
[1693584925750,0.00378965,25823.0,25822.0,0.41938084]
[1693584925949,0.02378965,25823.0,25822.0,0.47406991]
[1693584926149,0.00378965,25823.0,25822.0,0.47793991]
[1693584926458,0.00378965,25823.0,25822.0,0.53448829]
[1693584926954,0.02678965,25823.0,25822.0,0.53648829]
[1693584927154,0.02678965,25823.0,25822.0,0.48179922]
[1693584927567,0.02678965,25823.0,25822.0,0.48279922]
[1693584928360,0.02678965,25823.0,25822.0,0.53748829]
[1693584928553,0.34832747,25828.0,25827.0,0.00387]
[1693584928756,0.34832747,25828.0,25827.0,0.53390745]
[1693584929062,0.34453782,25828.0,25827.0,0.53390745]
[1693584930056,0.34453782,25828.0,25827.0,0.53690745]
[1693584930564,0.36653782,25828.0,25827.0,0.53890745]
[1693584930763,0.36653782,25828.0,25827.0,0.48221838]
[1693584930966,0.36653782,25828.0,25827.0,0.53690745]
[1693584932065,0.36253782,25828.0,25827.0,0.53590745]
[1693584932558,0.34453782,25828.0,25827.0,0.53490745]
[1693584932760,0.36253782,25828.0,25827.0,0.53590745]
[1693584933164,0.36253782,25828.0,25827.0,0.48121838]
[1693584933463,0.36253782,25828.0,25827.0,0.48021838]
[1693584933665,0.36253782,25828.0,25827.0,0.53590745]
[1693584933966,0.34832747,25828.0,25827.0,0.008]
[1693584934167,0.00378965,25823.0,25822.0,0.00058084]
[1693584934367,0.44258965,25823.0,25822.0,0.00058084]
[1693584935961,0.00378965,25817.0,25816.0,0.0269]
[1693584936162,0.00378965,25817.0,25816.0,0.4457]
[1693584936365,0.02378965,25817.0,25816.0,0.4457]
[1693584936561,0.02378965,25817.0,25816.0,0.50224838]
[1693584936770,0.02378965,25817.0,25816.0,0.55693745]
[1693584937067,0.00378965,25817.0,25816.0,0.55693745]
[1693584937264,0.00578965,25817.0,25816.0,0.79573745]
[1693584937567,0.00678965,25817.0,25816.0,0.74304838]
[1693584937753,0.02678965,25817.0,25816.0,0.74304838]
[1693584938161,0.02678965,25817.0,25816.0,0.79773745]
[1693584938366,0.02678965,25817.0,25816.0,0.79873745]
[1693584938665,0.02678965,25817.0,25816.0,0.76173745]
[1693584938666,0.02478965,25817.0,25816.0,0.76173745]
[1693584938864,0.05378965,25817.0,25816.0,0.76473745]
[1693584939062,0.03378965,25817.0,25816.0,0.76473745]
[1693584940459,0.03278965,25817.0,25816.0,0.76073745]
[1693584940769,0.03378965,25817.0,25816.0,0.76373745]
[1693584941071,0.03378965,25817.0,25816.0,0.73683745]
[1693584941268,0.03378965,25817.0,25816.0,0.73583745]
[1693584942774,0.03378965,25817.0,25816.0,0.68114838]
[1693584943365,0.03378965,25817.0,25816.0,0.73583745]
[1693584943770,0.03378965,25817.0,25816.0,0.68114838]
[1693584943970,0.03378965,25817.0,25816.0,0.73583745]
[1693584944158,0.03378965,25817.0,25816.0,0.68114838]
[1693584946271,0.03378965,25817.0,25816.0,0.73583745]
[1693584948762,0.03378965,25817.0,25816.0,0.68114838]
[1693584949564,0.03378965,25817.0,25816.0,0.73583745]
[1693584950764,0.03378965,25817.0,25816.0,0.73970745]
[1693584952377,0.03378965,25817.0,25816.0,0.68501838]
[1693584954381,0.03378965,25817.0,25816.0,0.73970745]
[1693584954579,0.03378965,25817.0,25816.0,0.68501838]
[1693584955581,0.03378965,25817.0,25816.0,0.73970745]
[1693584957282,0.03378965,25817.0,25816.0,0.53800745]
[1693584957878,0.03378965,25817.0,25816.0,0.48331838]
[1693584958272,0.03378965,25817.0,25816.0,0.53800745]
[1693584958472,0.03378965,25817.0,25816.0,0.48331838]
[1693584959586,0.03378965,25817.0,25816.0,0.53800745]
[1693584960383,0.03378965,25817.0,25816.0,0.48331838]
[1693584961008,0.03378965,25817.0,25816.0,0.53800745]
[1693584962085,0.03378965,25817.0,25816.0,0.48331838]
[1693584962398,0.03378965,25817.0,25816.0,0.4229]
[1693584963688,0.03378965,25817.0,25816.0,0.42677]
[1693584964584,0.03378965,25817.0,25816.0,0.4229]
[1693584964782,0.47268965,25817.0,25816.0,0.004]
[1693584967379,0.45268965,25817.0,25816.0,0.004]
[1693584967581,0.47268965,25817.0,25816.0,0.004]
[1693584968185,1.07268965,25817.0,25816.0,0.004]
[1693584968391,1.37268965,25817.0,25816.0,0.00390043]
[1693584968792,1.37268965,25817.0,25816.0,4.3e-07]
[1693584968990,1.20378965,25815.0,25814.0,0.00058102]
[1693584969187,1.64268965,25815.0,25814.0,0.00058102]
[1693584970883,1.64968965,25815.0,25814.0,0.00058102]
[1693584971190,1.65268965,25815.0,25814.0,0.00058102]
[1693584971692,1.64968965,25815.0,25814.0,0.00058102]
[1693584971888,1.67768965,25815.0,25814.0,0.00658102]
[1693584972491,1.67468965,25815.0,25814.0,0.00358102]
[1693584972784,1.67468965,25815.0,25814.0,0.00658102]
[1693584972785,1.67768965,25815.0,25814.0,0.00658102]
[1693584973588,1.67568965,25815.0,25814.0,0.00658102]
[1693584976185,1.20378965,25810.0,25806.0,0.00387]
[1693584976386,0.4189,25807.0,25806.0,0.00387]
[1693584977882,0.4209,25807.0,25806.0,0.03487]
[1693584978297,0.4189,25807.0,25806.0,0.00387]
[1693584978595,0.4199,25807.0,25806.0,0.03787]
[1693584979197,0.4199,25807.0,25806.0,0.034]
[1693584979198,1.0399,25807.0,25806.0,0.034]
[1693584979495,1.3399,25807.0,25806.0,0.034]
[1693584979886,1.3459,25807.0,25806.0,0.016]
[1693584980703,1.3659,25807.0,25806.0,0.001]
[1693584981197,1.3779,25807.0,25806.0,0.003]
[1693584981402,2.5779,25807.0,25806.0,0.005]
[1693584983498,0.00378965,25800.0,25798.0,0.08107899]
[1693584983700,0.4189,25799.0,25798.0,0.00387]
[1693584984699,0.4189,25799.0,25798.0,0.01487]
[1693584985004,0.4189,25799.0,25798.0,0.02687]
[1693584985205,0.4189,25799.0,25798.0,0.023]
[1693584986404,0.4209,25799.0,25798.0,0.012]
[1693584986699,0.4219,25799.0,25794.0,0.49610899]
[1693584986909,0.4189,25796.0,25794.0,0.51610899]
[1693584987211,0.32188836,25796.0,25794.0,0.51610899]
[1693584988304,0.6745,25798.0,25797.0,0.00387]
[1693584988598,0.6745,25798.0,25797.0,0.42277]
[1693584989500,0.4189,25798.0,25797.0,0.42277]
[1693584989700,0.4189,25798.0,25797.0,0.47931838]
[1693584989897,0.4189,25798.0,25797.0,0.49931838]
[1693584990206,0.4189,25798.0,25797.0,0.55400745]
[1693584990402,0.4199,25798.0,25797.0,0.51031838]
[1693584991100,0.4209,25798.0,25797.0,0.52231838]
[1693584991296,0.4209,25798.0,25797.0,0.46577]
[1693584991496,0.4209,25798.0,25797.0,0.44577]
[1693584991694,0.4209,25798.0,25797.0,0.4619]
[1693584992004,0.4209,25798.0,25797.0,0.4419]
[1693584992211,0.4209,25798.0,25797.0,0.4619]
[1693584992505,0.4209,25798.0,25797.0,0.52231838]
[1693584992808,0.4209,25798.0,25797.0,0.46577]
[1693584993009,0.4209,25798.0,25797.0,0.4419]
[1693584993711,0.4209,25798.0,25797.0,0.44577]
[1693584994213,0.4209,25798.0,25797.0,0.4419]
[1693584994395,0.4209,25798.0,25797.0,0.44577]
[1693584996207,0.4209,25798.0,25797.0,0.4419]
[1693584996504,0.4209,25798.0,25797.0,0.44577]
[1693584996704,0.4209,25798.0,25797.0,0.023]
[1693584996897,0.7209,25798.0,25797.0,0.023]
[1693584997104,0.7209,25798.0,25797.0,0.02687]
[1693584997704,1.9209,25798.0,25797.0,0.023]
[1693584998300,1.9209,25798.0,25797.0,0.44577]
[1693584998301,0.002,25798.0,25797.0,0.44577]
[1693584998510,0.002,25798.0,25797.0,0.49844838]
[1693584998998,0.002,25798.0,25797.0,0.55700745]
[1693584999510,0.002,25798.0,25797.0,0.55701745]
[1693585000006,0.002,25798.0,25797.0,0.55313745]
[1693585001912,0.002,25798.0,25797.0,0.49844838]
[1693585002613,0.002,25798.0,25797.0,0.55313745]
[1693585003117,0.002,25798.0,25797.0,0.4419]
[1693585003701,0.4209,25798.0,25797.0,0.44578]
[1693585004106,0.4209,25798.0,25797.0,0.55701745]
[1693585004316,0.4209,25798.0,25797.0,0.50232838]
[1693585005210,0.4209,25798.0,25797.0,0.55701745]
[1693585005713,0.4209,25798.0,25797.0,0.50232838]
[1693585005916,0.002,25798.0,25797.0,0.50232838]
[1693585006314,0.002,25798.0,25797.0,0.55701745]
[1693585006505,0.4209,25798.0,25797.0,0.55701745]
[1693585008706,0.4209,25798.0,25797.0,0.55313745]
[1693585010511,0.002,25798.0,25797.0,0.57313745]
[1693585010717,0.00058144,25800.0,25797.0,0.57313745]
[1693585010919,0.00058144,25800.0,25799.0,0.42278]
[1693585011110,0.00058144,25800.0,25799.0,0.44278]
[1693585011309,0.00058144,25800.0,25799.0,0.4389]
[1693585011511,0.00058144,25800.0,25799.0,0.62725111]
[1693585012124,0.01758144,25800.0,25799.0,0.63313111]
[1693585012715,0.00358144,25800.0,25799.0,0.58613745]
[1693585013019,0.00358144,25800.0,25799.0,0.70174397]
[1693585013322,0.02058144,25800.0,25799.0,0.70174397]
[1693585013625,0.02058144,25800.0,25799.0,0.70562397]
[1693585013811,0.00358144,25800.0,25799.0,0.70174397]
[1693585014015,0.00558144,25800.0,25799.0,0.73874397]
[1693585014315,0.00258144,25800.0,25799.0,0.70662397]
[1693585014623,0.00558144,25800.0,25799.0,0.62801745]